[Event "Early-Titled-Tuesday-Blitz-September-12-2023"]
[Site "Chess.com"]
[Date "2023.09.12"]
[Round "8"]
[White "GMBenjaminBok"]
[Black "FairChess_on_YouTube"]
[Result "1-0"]
[WhiteElo "3016"]
[BlackElo "3045"]
[TimeControl "180+1"]
[EndTime "9:30:04 PDT"]
[Termination "GMBenjaminBok won on time"]

1. d4 {[%clk 0:03:00.9]} 1... d5 {[%clk 0:02:59.6]} 2. c4 {[%clk 0:03:00.8]}
2... e6 {[%clk 0:03:00]} 3. Nc3 {[%clk 0:03:00.7]} 3... Be7 {[%clk 0:02:58.6]}
4. Nf3 {[%clk 0:02:46.7]} 4... Nf6 {[%clk 0:02:55.8]} 5. g3 {[%clk 0:02:45.6]}
5... O-O {[%clk 0:02:53.2]} 6. Bg2 {[%clk 0:02:45.4]} 6... c6 {[%clk 0:02:51.7]}
7. O-O {[%clk 0:02:44.9]} 7... Nbd7 {[%clk 0:02:52]} 8. b3 {[%clk 0:02:41.3]}
8... b6 {[%clk 0:02:52.2]} 9. Nd2 {[%clk 0:02:29.7]} 9... b5 {[%clk 0:02:46.3]}
10. cxb5 {[%clk 0:02:27.8]} 10... cxb5 {[%clk 0:02:46.3]} 11. Nxb5 {[%clk
0:02:26.4]} 11... Qb6 {[%clk 0:02:46.1]} 12. Nc3 {[%clk 0:02:25.2]} 12... Qxd4
{[%clk 0:02:45.8]} 13. Bb2 {[%clk 0:02:25.3]} 13... Qb6 {[%clk 0:02:38.3]} 14.
e4 {[%clk 0:02:24.2]} 14... Ba6 {[%clk 0:02:36.4]} 15. Na4 {[%clk 0:01:31.1]}
15... Qa5 {[%clk 0:02:29.3]} 16. Bc3 {[%clk 0:01:25.8]} 16... Bb4 {[%clk
0:02:24.1]} 17. Bxb4 {[%clk 0:01:25.9]} 17... Qxb4 {[%clk 0:02:24.2]} 18. Re1
{[%clk 0:01:26.8]} 18... Ne5 {[%clk 0:02:16.5]} 19. exd5 {[%clk 0:01:00.5]}
19... Nd3 {[%clk 0:02:16.6]} 20. dxe6 {[%clk 0:00:59.3]} 20... Nxf2 {[%clk
0:01:35.3]} 21. Qf3 {[%clk 0:00:44.8]} 21... N2g4 {[%clk 0:01:26.7]} 22. exf7+
{[%clk 0:00:43.3]} 22... Kxf7 {[%clk 0:01:18.6]} 23. Qf4 {[%clk 0:00:18.1]}
23... Qxf4 {[%clk 0:01:13.1]} 24. gxf4 {[%clk 0:00:19]} 24... Rac8 {[%clk
0:00:44.6]} 25. Nf3 {[%clk 0:00:18.9]} 25... Nh5 {[%clk 0:00:34.9]} 26. Bh3
{[%clk 0:00:15.9]} 26... Ngf6 {[%clk 0:00:20.9]} 27. Ne5+ {[%clk 0:00:13.8]}
27... Kg8 {[%clk 0:00:21]} 28. Be6+ {[%clk 0:00:12.7]} 28... Kh8 {[%clk
0:00:21.2]} 29. Bxc8 {[%clk 0:00:12.6]} 29... Bxc8 {[%clk 0:00:21.2]} 30. Rf1
{[%clk 0:00:09.2]} 30... Nd5 {[%clk 0:00:21]} 31. Rac1 {[%clk 0:00:08.4]} 31...
Nhxf4 {[%clk 0:00:21.1]} 32. Nc5 {[%clk 0:00:06.4]} 32... Ne2+ {[%clk
0:00:18.3]} 33. Kh1 {[%clk 0:00:06.7]} 33... Ndf4 {[%clk 0:00:16.8]} 34. Rce1
{[%clk 0:00:06.6]} 34... Re8 {[%clk 0:00:15.3]} 35. Ned3 {[%clk 0:00:05]} 35...
g5 {[%clk 0:00:05.5]} 36. Nxf4 {[%clk 0:00:04.1]} 36... gxf4 {[%clk 0:00:06.4]}
37. Rf2 {[%clk 0:00:03.6]} 37... f3 {[%clk 0:00:06]} 38. Rxf3 {[%clk 0:00:03.7]}
38... Ng3+ {[%clk 0:00:06.4]} 39. hxg3 {[%clk 0:00:04.2]} 39... Rxe1+ {[%clk
0:00:07]} 40. Kg2 {[%clk 0:00:04.7]} 40... Rc1 {[%clk 0:00:06.2]} 41. Rf8+
{[%clk 0:00:04.2]} 41... Kg7 {[%clk 0:00:05.8]} 42. Rxc8 {[%clk 0:00:05.1]}
42... Rc2+ {[%clk 0:00:05.9]} 43. Kf3 {[%clk 0:00:05.7]} 43... Rxa2 {[%clk
0:00:06.5]} 44. Rc7+ {[%clk 0:00:06.2]} 44... Kg6 {[%clk 0:00:06.6]} 45. Ne4
{[%clk 0:00:05.9]} 45... Ra3 {[%clk 0:00:06.2]} 46. Kf4 {[%clk 0:00:06.3]} 46...
Rxb3 {[%clk 0:00:06.1]} 47. Rxa7 {[%clk 0:00:06.5]} 47... Rb1 {[%clk 0:00:06.8]}
48. Ra6+ {[%clk 0:00:06.8]} 48... Kg7 {[%clk 0:00:07]} 49. g4 {[%clk 0:00:07.3]}
49... Rf1+ {[%clk 0:00:07.3]} 50. Ke5 {[%clk 0:00:07.7]} 50... h6 {[%clk
0:00:07.4]} 51. Ng3 {[%clk 0:00:07.1]} 51... Re1+ {[%clk 0:00:05]} 52. Kf4
{[%clk 0:00:07.5]} 52... Kh7 {[%clk 0:00:04.8]} 53. Nf5 {[%clk 0:00:06.8]} 53...
Rf1+ {[%clk 0:00:04.2]} 54. Kg3 {[%clk 0:00:07.1]} 54... Rh1 {[%clk 0:00:04.6]}
55. Kg2 {[%clk 0:00:04.8]} 55... Rc1 {[%clk 0:00:04.6]} 56. Rxh6+ {[%clk
0:00:04.7]} 56... Kg8 {[%clk 0:00:05.3]} 57. Ra6 {[%clk 0:00:05.6]} 57... Kf7
{[%clk 0:00:05.6]} 58. Kg3 {[%clk 0:00:05.7]} 58... Rf1 {[%clk 0:00:05.3]} 59.
Kh4 {[%clk 0:00:05.8]} 59... Rg1 {[%clk 0:00:05]} 60. Kg5 {[%clk 0:00:06.1]}
60... Ke8 {[%clk 0:00:04.9]} 61. Ra7 {[%clk 0:00:06.2]} 61... Kf8 {[%clk
0:00:04.9]} 62. Kh5 {[%clk 0:00:06.3]} 62... Rf1 {[%clk 0:00:01.9]} 63. Kg6
{[%clk 0:00:05.5]} 63... Ke8 {[%clk 0:00:02.6]} 64. g5 {[%clk 0:00:05.6]} 64...
Rb1 {[%clk 0:00:02.8]} 65. Ng7+ {[%clk 0:00:05]} 65... Kd8 {[%clk 0:00:02.5]}
66. Kf6 {[%clk 0:00:05.3]} 66... Rf1+ {[%clk 0:00:02.1]} 67. Nf5 {[%clk
0:00:05.6]} 67... Ra1 {[%clk 0:00:02.7]} 68. Rxa1 {[%clk 0:00:04.5]} 1-0

[Event "Early-Titled-Tuesday-Blitz-September-12-2023"]
[Site "Chess.com"]
[Date "2023.09.12"]
[Round "8"]
[White "AlexPapasimakopoulos"]
[Black "Anton_Demchenko"]
[Result "0-1"]
[WhiteElo "2770"]
[BlackElo "2945"]
[TimeControl "180+1"]
[EndTime "9:30:14 PDT"]
[Termination "Anton_Demchenko won by checkmate"]

1. d4 {[%clk 0:00:43.4]} 1... Nf6 {[%clk 0:02:59.5]} 2. c4 {[%clk 0:00:42]} 2...
g6 {[%clk 0:02:59.6]} 3. Nc3 {[%clk 0:00:42.6]} 3... Bg7 {[%clk 0:02:59.9]} 4.
Bg5 {[%clk 0:00:43.3]} 4... h6 {[%clk 0:02:58.3]} 5. Bh4 {[%clk 0:00:43.4]} 5...
d5 {[%clk 0:02:36.8]} 6. e3 {[%clk 0:00:42.1]} 6... g5 {[%clk 0:02:24.9]} 7. Bg3
{[%clk 0:00:41.9]} 7... c5 {[%clk 0:02:15.2]} 8. Nf3 {[%clk 0:00:35.5]} 8... O-O
{[%clk 0:02:11.7]} 9. cxd5 {[%clk 0:00:33.3]} 9... Nxd5 {[%clk 0:02:09.1]} 10.
Rc1 {[%clk 0:00:27.1]} 10... Nxc3 {[%clk 0:01:54.6]} 11. bxc3 {[%clk 0:00:26.2]}
11... Be6 {[%clk 0:01:39.1]} 12. Qd2 {[%clk 0:00:19]} 12... Nc6 {[%clk
0:01:34.1]} 13. h3 {[%clk 0:00:19.3]} 13... f5 {[%clk 0:01:17.5]} 14. Be2 {[%clk
0:00:19.2]} 14... Qd7 {[%clk 0:00:48.6]} 15. O-O {[%clk 0:00:19.1]} 15... Rad8
{[%clk 0:00:49.3]} 16. Rfd1 {[%clk 0:00:19]} 16... Qe8 {[%clk 0:00:49.2]} 17.
Qb2 {[%clk 0:00:18.8]} 17... b6 {[%clk 0:00:46.9]} 18. a4 {[%clk 0:00:18.3]}
18... Qf7 {[%clk 0:00:43.3]} 19. Bb5 {[%clk 0:00:18.2]} 19... Bd5 {[%clk
0:00:38.9]} 20. Bxc6 {[%clk 0:00:18.8]} 20... Bxc6 {[%clk 0:00:39]} 21. Ne5
{[%clk 0:00:19.6]} 21... Bxe5 {[%clk 0:00:35.9]} 22. Bxe5 {[%clk 0:00:19.5]}
22... g4 {[%clk 0:00:36.6]} 23. hxg4 {[%clk 0:00:18.9]} 23... fxg4 {[%clk
0:00:37.3]} 24. Qe2 {[%clk 0:00:17.3]} 24... h5 {[%clk 0:00:36.7]} 25. Re1
{[%clk 0:00:17.6]} 25... Be4 {[%clk 0:00:29.2]} 26. a5 {[%clk 0:00:16.9]} 26...
Qg6 {[%clk 0:00:23.7]} 27. Bg3 {[%clk 0:00:16.8]} 27... Qg5 {[%clk 0:00:23.1]}
28. axb6 {[%clk 0:00:16.9]} 28... axb6 {[%clk 0:00:23.3]} 29. dxc5 {[%clk
0:00:16.9]} 29... bxc5 {[%clk 0:00:15.3]} 30. Rcd1 {[%clk 0:00:16]} 30... Qf5
{[%clk 0:00:09.2]} 31. Bh4 {[%clk 0:00:13.3]} 31... Rxd1 {[%clk 0:00:08]} 32.
Qxd1 {[%clk 0:00:12]} 32... Rf7 {[%clk 0:00:08.9]} 33. Qd8+ {[%clk 0:00:12]}
33... Kg7 {[%clk 0:00:08.8]} 34. Qc7 {[%clk 0:00:12.4]} 34... Qd5 {[%clk
0:00:07.4]} 35. Qg3 {[%clk 0:00:08.7]} 35... e6 {[%clk 0:00:06.7]} 36. Ra1
{[%clk 0:00:07.4]} 36... Rb7 {[%clk 0:00:06.5]} 37. c4 {[%clk 0:00:07.7]} 37...
Qf5 {[%clk 0:00:03.8]} 38. Qd6 {[%clk 0:00:07.2]} 38... Rf7 {[%clk 0:00:01.8]}
39. Ra6 {[%clk 0:00:05.4]} 39... Bb7 {[%clk 0:00:02.3]} 40. Rb6 {[%clk
0:00:05.3]} 40... Qe4 {[%clk 0:00:02.6]} 41. Rxb7 {[%clk 0:00:04.6]} 41... Qxb7
{[%clk 0:00:02.3]} 42. Qxc5 {[%clk 0:00:05.3]} 42... Qb1+ {[%clk 0:00:02.4]} 43.
Kh2 {[%clk 0:00:05.4]} 43... Qf5 {[%clk 0:00:02.3]} 44. Qd4+ {[%clk 0:00:04.8]}
44... e5 {[%clk 0:00:02.4]} 45. Qd5 {[%clk 0:00:05.2]} 45... Kg6 {[%clk
0:00:02.8]} 46. Bg3 {[%clk 0:00:05.6]} 46... Rd7 {[%clk 0:00:02.7]} 47. e4
{[%clk 0:00:06.1]} 47... Qf7 {[%clk 0:00:01.7]} 48. Qxe5 {[%clk 0:00:05.8]}
48... Re7 {[%clk 0:00:02.5]} 49. Qd6+ {[%clk 0:00:06]} 49... Qe6 {[%clk
0:00:02.9]} 50. e5 {[%clk 0:00:06.6]} 50... Kf7 {[%clk 0:00:01.9]} 51. c5 {[%clk
0:00:06.9]} 51... Rd7 {[%clk 0:00:02.8]} 52. Qb6 {[%clk 0:00:05.7]} 52... Rd4
{[%clk 0:00:02.3]} 53. c6 {[%clk 0:00:05.1]} 53... Rc4 {[%clk 0:00:02.9]} 54.
Qb7+ {[%clk 0:00:05.1]} 54... Kg6 {[%clk 0:00:03.2]} 55. c7 {[%clk 0:00:05.7]}
55... Rc3 {[%clk 0:00:02.3]} 56. Qb8 {[%clk 0:00:05.2]} 56... h4 {[%clk
0:00:02]} 57. Bxh4 {[%clk 0:00:05.2]} 57... Qxe5+ {[%clk 0:00:02.6]} 58. Bg3
{[%clk 0:00:05.9]} 58... Qe6 {[%clk 0:00:02.8]} 59. c8=Q {[%clk 0:00:05.7]}
59... Rxc8 {[%clk 0:00:02.6]} 60. Qb1+ {[%clk 0:00:05.4]} 60... Kg7 {[%clk
0:00:02.4]} 61. Qd1 {[%clk 0:00:05.8]} 61... Kg8 {[%clk 0:00:03]} 62. Kg1 {[%clk
0:00:05.7]} 62... Re8 {[%clk 0:00:03.7]} 63. Kf1 {[%clk 0:00:05.2]} 63... Qc4+
{[%clk 0:00:03.5]} 64. Kg1 {[%clk 0:00:05.8]} 64... Qe4 {[%clk 0:00:04.2]} 65.
Qc1 {[%clk 0:00:05.7]} 65... Qe1+ {[%clk 0:00:04.2]} 66. Qxe1 {[%clk 0:00:06.3]}
66... Rxe1+ {[%clk 0:00:04.9]} 67. Kh2 {[%clk 0:00:07.2]} 67... Re2 {[%clk
0:00:05.5]} 68. f3 {[%clk 0:00:07.4]} 68... gxf3 {[%clk 0:00:05.6]} 69. Bf4
{[%clk 0:00:07.7]} 69... Rxg2+ {[%clk 0:00:05.6]} 70. Kh3 {[%clk 0:00:07.7]}
70... Kf7 {[%clk 0:00:06.5]} 71. Bg3 {[%clk 0:00:08]} 71... Ke6 {[%clk
0:00:07.4]} 72. Kg4 {[%clk 0:00:08.6]} 72... f2 {[%clk 0:00:07]} 73. Kh3 {[%clk
0:00:08.3]} 73... f1=Q {[%clk 0:00:07.6]} 74. Bh2 {[%clk 0:00:09.2]} 74... Qf3+
{[%clk 0:00:07.5]} 75. Kh4 {[%clk 0:00:10.1]} 75... Qg4# {[%clk 0:00:07.8]} 0-1

[Event "Early-Titled-Tuesday-Blitz-September-12-2023"]
[Site "Chess.com"]
[Date "2023.09.12"]
[Round "8"]
[White "wqws"]
[Black "VSanduleac"]
[Result "0-1"]
[WhiteElo "2673"]
[BlackElo "2553"]
[TimeControl "180+1"]
[EndTime "9:30:14 PDT"]
[Termination "VSanduleac won by checkmate"]

1. e4 {[%clk 0:02:57.8]} 1... g6 {[%clk 0:02:59.2]} 2. d4 {[%clk 0:02:57.7]}
2... Bg7 {[%clk 0:02:59.8]} 3. Nc3 {[%clk 0:02:58.6]} 3... c6 {[%clk 0:03:00]}
4. Nf3 {[%clk 0:02:58.2]} 4... d6 {[%clk 0:02:58.9]} 5. Be3 {[%clk 0:02:58.3]}
5... Nf6 {[%clk 0:02:58.9]} 6. h3 {[%clk 0:02:58.3]} 6... b5 {[%clk 0:02:59]} 7.
Bd3 {[%clk 0:02:58.3]} 7... a6 {[%clk 0:02:58.9]} 8. O-O {[%clk 0:02:58.9]} 8...
Bb7 {[%clk 0:02:59]} 9. Ne2 {[%clk 0:02:58.7]} 9... Nbd7 {[%clk 0:02:58]} 10. c3
{[%clk 0:02:58.3]} 10... O-O {[%clk 0:02:57.1]} 11. Ng3 {[%clk 0:02:57.3]} 11...
Qc7 {[%clk 0:02:56.9]} 12. Qd2 {[%clk 0:02:57.2]} 12... Rfe8 {[%clk 0:02:56.3]}
13. Bh6 {[%clk 0:02:57.4]} 13... Bh8 {[%clk 0:02:55]} 14. Rfe1 {[%clk
0:02:56.5]} 14... e5 {[%clk 0:02:50.6]} 15. Rad1 {[%clk 0:02:55.4]} 15... c5
{[%clk 0:02:42.9]} 16. d5 {[%clk 0:02:52.6]} 16... c4 {[%clk 0:02:41.3]} 17. Bf1
{[%clk 0:02:42.6]} 17... Nc5 {[%clk 0:02:41]} 18. Nh2 {[%clk 0:02:37.5]} 18...
Bc8 {[%clk 0:02:28.6]} 19. f3 {[%clk 0:02:34.7]} 19... Bg7 {[%clk 0:02:25.2]}
20. Ng4 {[%clk 0:02:33.8]} 20... Qe7 {[%clk 0:02:16.8]} 21. Bg5 {[%clk
0:02:28.7]} 21... Bxg4 {[%clk 0:02:14]} 22. hxg4 {[%clk 0:02:07.4]} 22... Qf8
{[%clk 0:02:11.8]} 23. Be3 {[%clk 0:01:58]} 23... Nfd7 {[%clk 0:02:09]} 24. g5
{[%clk 0:01:55.4]} 24... f6 {[%clk 0:02:02.3]} 25. Nh1 {[%clk 0:01:52.1]} 25...
fxg5 {[%clk 0:02:01.7]} 26. Bxg5 {[%clk 0:01:51.7]} 26... h6 {[%clk 0:01:58.6]}
27. Be3 {[%clk 0:01:51.5]} 27... Kf7 {[%clk 0:01:48.4]} 28. g3 {[%clk
0:01:51.2]} 28... Ke7 {[%clk 0:01:46.2]} 29. Qf2 {[%clk 0:01:32.8]} 29... Kd8
{[%clk 0:01:45]} 30. Rb1 {[%clk 0:01:26.7]} 30... Rc8 {[%clk 0:01:32.2]} 31. b3
{[%clk 0:01:25.2]} 31... cxb3 {[%clk 0:01:31]} 32. axb3 {[%clk 0:01:25.2]} 32...
h5 {[%clk 0:01:30.1]} 33. c4 {[%clk 0:01:21.2]} 33... b4 {[%clk 0:01:29.1]} 34.
Kg2 {[%clk 0:00:47.6]} 34... Bh6 {[%clk 0:01:25.6]} 35. Qd2 {[%clk 0:00:44.6]}
35... Bxe3 {[%clk 0:01:23.3]} 36. Rxe3 {[%clk 0:00:45.5]} 36... a5 {[%clk
0:01:23]} 37. Qa2 {[%clk 0:00:45]} 37... Ra8 {[%clk 0:01:21]} 38. Nf2 {[%clk
0:00:44.8]} 38... Kc7 {[%clk 0:01:19.7]} 39. Nd3 {[%clk 0:00:42.6]} 39... Nxd3
{[%clk 0:01:18]} 40. Bxd3 {[%clk 0:00:41]} 40... Nc5 {[%clk 0:01:18.6]} 41. Bf1
{[%clk 0:00:40.2]} 41... Qe7 {[%clk 0:01:17.3]} 42. Be2 {[%clk 0:00:35.4]} 42...
Qg5 {[%clk 0:01:16.1]} 43. Qd2 {[%clk 0:00:34.1]} 43... h4 {[%clk 0:01:15.5]}
44. g4 {[%clk 0:00:31.3]} 44... Qf4 {[%clk 0:01:14.7]} 45. Rh1 {[%clk
0:00:30.9]} 45... g5 {[%clk 0:01:13.4]} 46. Bd1 {[%clk 0:00:30.1]} 46... Rf8
{[%clk 0:01:09.5]} 47. Rf1 {[%clk 0:00:28.2]} 47... Kb6 {[%clk 0:00:51.6]} 48.
Qf2 {[%clk 0:00:21.3]} 48... Qg3+ {[%clk 0:00:48.8]} 49. Qxg3 {[%clk 0:00:21.1]}
49... hxg3 {[%clk 0:00:49.5]} 50. Kxg3 {[%clk 0:00:22]} 50... Rh8 {[%clk
0:00:49.4]} 51. Ree1 {[%clk 0:00:21.7]} 51... Nd3 {[%clk 0:00:44.8]} 52. Re2
{[%clk 0:00:21.1]} 52... Nf4 {[%clk 0:00:44.6]} 53. Rh2 {[%clk 0:00:20.9]} 53...
Rxh2 {[%clk 0:00:43.4]} 54. Kxh2 {[%clk 0:00:21.8]} 54... Rh8+ {[%clk
0:00:42.8]} 55. Kg1 {[%clk 0:00:22.1]} 55... Kc5 {[%clk 0:00:42.1]} 56. Bc2
{[%clk 0:00:20.1]} 56... Kd4 {[%clk 0:00:41]} 57. Ra1 {[%clk 0:00:17.7]} 57...
Ra8 {[%clk 0:00:36.9]} 58. Kf2 {[%clk 0:00:16.2]} 58... Kc3 {[%clk 0:00:34.7]}
59. Bd1 {[%clk 0:00:16.4]} 59... Kb2 {[%clk 0:00:34.5]} 60. Ra4 {[%clk
0:00:14.1]} 60... Nd3+ {[%clk 0:00:34.3]} 61. Ke3 {[%clk 0:00:14.5]} 61... Nc5
{[%clk 0:00:35.2]} 62. Kd2 {[%clk 0:00:12.4]} 62... Nxa4 {[%clk 0:00:34.5]} 63.
bxa4 {[%clk 0:00:13.1]} 63... b3 {[%clk 0:00:33.7]} 64. Kd3 {[%clk 0:00:13.1]}
64... Rc8 {[%clk 0:00:31.8]} 65. f4 {[%clk 0:00:11.4]} 65... gxf4 {[%clk
0:00:30.2]} 66. g5 {[%clk 0:00:11.6]} 66... Ka3 {[%clk 0:00:29.2]} 67. g6 {[%clk
0:00:11.4]} 67... b2 {[%clk 0:00:27]} 68. Bc2 {[%clk 0:00:08.7]} 68... Ka2
{[%clk 0:00:24.6]} 69. c5 {[%clk 0:00:08.6]} 69... Rxc5 {[%clk 0:00:23.2]} 70.
g7 {[%clk 0:00:08.3]} 70... Rxc2 {[%clk 0:00:21.4]} 71. g8=Q {[%clk 0:00:07.3]}
71... b1=Q {[%clk 0:00:20.9]} 72. Qg3 {[%clk 0:00:03.1]} 72... Qb3# {[%clk
0:00:20.1]} 0-1

[Event "Early-Titled-Tuesday-Blitz-September-12-2023"]
[Site "Chess.com"]
[Date "2023.09.12"]
[Round "8"]
[White "TimofeevAr"]
[Black "DopplerCharlotteDeWitte"]
[Result "1/2-1/2"]
[WhiteElo "2837"]
[BlackElo "2696"]
[TimeControl "180+1"]
[EndTime "9:30:18 PDT"]
[Termination "Game drawn by stalemate"]

1. c4 {[%clk 0:03:00.9]} 1... e5 {[%clk 0:02:59.2]} 2. e3 {[%clk 0:02:58.8]}
2... Nf6 {[%clk 0:02:57.5]} 3. Nc3 {[%clk 0:02:58.7]} 3... d6 {[%clk 0:02:49.7]}
4. Nf3 {[%clk 0:02:55.1]} 4... g6 {[%clk 0:02:49.6]} 5. d4 {[%clk 0:02:49.4]}
5... Nc6 {[%clk 0:02:49.7]} 6. dxe5 {[%clk 0:02:48.1]} 6... Nxe5 {[%clk
0:02:47]} 7. Be2 {[%clk 0:02:43.2]} 7... Bg7 {[%clk 0:02:34.5]} 8. Nxe5 {[%clk
0:02:42.9]} 8... dxe5 {[%clk 0:02:35.4]} 9. Qxd8+ {[%clk 0:02:43.4]} 9... Kxd8
{[%clk 0:02:36.3]} 10. b3 {[%clk 0:02:36.8]} 10... Be6 {[%clk 0:02:32.6]} 11.
Bb2 {[%clk 0:02:35.9]} 11... c6 {[%clk 0:02:30.3]} 12. O-O-O+ {[%clk 0:02:06.5]}
12... Kc7 {[%clk 0:02:01.9]} 13. h3 {[%clk 0:02:06.4]} 13... h5 {[%clk 0:01:47]}
14. f4 {[%clk 0:02:06]} 14... Rhe8 {[%clk 0:01:16.7]} 15. Rhf1 {[%clk
0:01:46.1]} 15... exf4 {[%clk 0:01:15.2]} 16. exf4 {[%clk 0:01:45.7]} 16... Bf5
{[%clk 0:01:00.5]} 17. Bd3 {[%clk 0:01:45.2]} 17... Re3 {[%clk 0:00:53.2]} 18.
Bxf5 {[%clk 0:01:43]} 18... gxf5 {[%clk 0:00:54.1]} 19. Rde1 {[%clk 0:01:41.3]}
19... Rae8 {[%clk 0:00:49.5]} 20. Rxe3 {[%clk 0:01:34]} 20... Rxe3 {[%clk
0:00:50.4]} 21. Nd1 {[%clk 0:01:33.8]} 21... Rg3 {[%clk 0:00:48.5]} 22. Rf2
{[%clk 0:01:16.1]} 22... Ne4 {[%clk 0:00:46.1]} 23. Re2 {[%clk 0:01:16.4]} 23...
f6 {[%clk 0:00:34.6]} 24. Kc2 {[%clk 0:01:14.5]} 24... Bh6 {[%clk 0:00:33.2]}
25. Bc1 {[%clk 0:01:14.1]} 25... Kd6 {[%clk 0:00:28.8]} 26. Be3 {[%clk
0:01:12.6]} 26... Ke6 {[%clk 0:00:21.4]} 27. b4 {[%clk 0:01:05.5]} 27... a6
{[%clk 0:00:21.4]} 28. a4 {[%clk 0:01:05.2]} 28... Bf8 {[%clk 0:00:18.4]} 29. b5
{[%clk 0:00:58.7]} 29... axb5 {[%clk 0:00:18.1]} 30. axb5 {[%clk 0:00:58.3]}
30... cxb5 {[%clk 0:00:18.6]} 31. cxb5 {[%clk 0:00:58.7]} 31... Kd5 {[%clk
0:00:18.1]} 32. Ba7 {[%clk 0:00:52.4]} 32... Ra3 {[%clk 0:00:14.6]} 33. Ne3+
{[%clk 0:00:50.8]} 33... Ke6 {[%clk 0:00:15]} 34. Bd4 {[%clk 0:00:43.4]} 34...
Bb4 {[%clk 0:00:15]} 35. Nc4 {[%clk 0:00:29.8]} 35... Ra2+ {[%clk 0:00:13.4]}
36. Bb2 {[%clk 0:00:30]} 36... Bc5 {[%clk 0:00:10.2]} 37. Kb3 {[%clk 0:00:29]}
37... Ra8 {[%clk 0:00:10.4]} 38. g4 {[%clk 0:00:29]} 38... hxg4 {[%clk
0:00:10.6]} 39. hxg4 {[%clk 0:00:29.1]} 39... Rg8 {[%clk 0:00:10.8]} 40. gxf5+
{[%clk 0:00:25.5]} 40... Kxf5 {[%clk 0:00:11.7]} 41. Rh2 {[%clk 0:00:23.7]}
41... Rg3+ {[%clk 0:00:11.4]} 42. Kc2 {[%clk 0:00:23]} 42... Kxf4 {[%clk
0:00:12]} 43. Rh7 {[%clk 0:00:23]} 43... b6 {[%clk 0:00:12]} 44. Rb7 {[%clk
0:00:22.8]} 44... Rg2+ {[%clk 0:00:10.4]} 45. Kd3 {[%clk 0:00:20.4]} 45... Nd6
{[%clk 0:00:06.7]} 46. Bc1+ {[%clk 0:00:18.5]} 46... Kf5 {[%clk 0:00:04.4]} 47.
Nxd6+ {[%clk 0:00:18.2]} 47... Bxd6 {[%clk 0:00:05.3]} 48. Rxb6 {[%clk
0:00:18.1]} 48... Be5 {[%clk 0:00:06.2]} 49. Rb7 {[%clk 0:00:14.2]} 49... Rg3+
{[%clk 0:00:06.2]} 50. Ke2 {[%clk 0:00:13.8]} 50... Ke4 {[%clk 0:00:07.1]} 51.
Ra7 {[%clk 0:00:08.2]} 51... Rg2+ {[%clk 0:00:06.8]} 52. Kd1 {[%clk 0:00:08.4]}
52... Kd3 {[%clk 0:00:05.1]} 53. Bd2 {[%clk 0:00:07.9]} 53... Rg1+ {[%clk
0:00:04.6]} 54. Be1 {[%clk 0:00:08.1]} 54... Bd4 {[%clk 0:00:03.3]} 55. Ra3+
{[%clk 0:00:06.9]} 55... Kc4 {[%clk 0:00:03.2]} 56. Ke2 {[%clk 0:00:06.6]} 56...
Kxb5 {[%clk 0:00:02.9]} 57. Rf3 {[%clk 0:00:06.1]} 57... Kc4 {[%clk 0:00:03.1]}
58. Bf2 {[%clk 0:00:06.1]} 58... Rg2 {[%clk 0:00:03.2]} 59. Kf1 {[%clk
0:00:06.5]} 59... Rxf2+ {[%clk 0:00:04.1]} 60. Rxf2 {[%clk 0:00:06.9]} 60...
Bxf2 {[%clk 0:00:05]} 61. Kxf2 {[%clk 0:00:06.9]} 61... Kd4 {[%clk 0:00:05.7]}
62. Kf3 {[%clk 0:00:07.3]} 62... Ke5 {[%clk 0:00:06.4]} 63. Ke3 {[%clk
0:00:07.5]} 63... Kf5 {[%clk 0:00:07.1]} 64. Kf3 {[%clk 0:00:07.8]} 64... Ke5
{[%clk 0:00:07.8]} 65. Ke3 {[%clk 0:00:07.8]} 65... f5 {[%clk 0:00:08.5]} 66.
Kf3 {[%clk 0:00:08.1]} 66... f4 {[%clk 0:00:09.4]} 67. Kf2 {[%clk 0:00:08.1]}
67... Kf5 {[%clk 0:00:10.3]} 68. Kf3 {[%clk 0:00:08.1]} 68... Ke5 {[%clk
0:00:09.5]} 69. Kf2 {[%clk 0:00:08.5]} 69... Ke4 {[%clk 0:00:10.4]} 70. Ke2
{[%clk 0:00:08.5]} 70... f3+ {[%clk 0:00:11.3]} 71. Kf2 {[%clk 0:00:08]} 71...
Kf4 {[%clk 0:00:12.2]} 72. Kf1 {[%clk 0:00:08.1]} 72... Ke3 {[%clk 0:00:13.1]}
73. Ke1 {[%clk 0:00:07.5]} 73... f2+ {[%clk 0:00:14]} 74. Kf1 {[%clk 0:00:07.6]}
74... Kf3 {[%clk 0:00:14.9]} 1/2-1/2